bitfinex/quotes_SOLUSD_20260202
["timestamp","ask_amount","ask_price","bid_price","bid_amount"]
[1770005418355,4.5,99.579,99.54,10.05943223]
[1770005418551,30.0,99.55,99.54,10.05943223]
[1770005418751,30.0,99.55,99.52,10.05943223]
[1770005418752,4.5,99.549,99.52,10.05943223]
[1770005419236,4.5,99.549,99.495,4.27527085]
[1770005419237,30.0,99.55,99.54,10.05943223]
[1770005419436,30.0,99.55,99.53,10.05943223]
[1770005419838,4.5,99.549,99.51,10.05943223]
[1770005420134,4.5,99.571,99.54,10.05943223]
[1770005420340,4.5,99.609,99.56,10.05943223]
[1770005420551,4.5,99.609,99.58,10.05943223]
[1770005420837,4.5,99.609,99.545,4.27527085]
[1770005420838,4.5,99.609,99.57,10.05943223]
[1770005421843,4.5,99.633,99.59,10.05943223]
[1770005422154,4.5,99.633,99.58,10.05943223]
[1770005422545,4.5,99.629,99.57,10.05943223]
[1770005423661,4.5,99.629,99.58,10.05943223]
[1770005423854,4.5,99.629,99.6,10.05943223]
[1770005424178,4.5,99.659,99.62,10.05943223]
[1770005424469,4.5,99.659,99.61,10.05943223]
[1770005424655,4.5,99.659,99.411,50.29616117]
[1770005424656,4.5,99.649,99.59,10.05943223]
[1770005424841,4.5,99.639,99.59,10.05943223]
[1770005425041,4.5,99.639,99.575,4.27527085]
[1770005425042,4.5,99.629,99.58,10.05943223]
[1770005425565,4.5,99.609,99.56,10.05943223]
[1770005426979,4.5,99.609,99.58,10.05943223]
[1770005427649,50.91799304,99.733,99.58,10.05943223]
[1770005427845,4.5,99.645,99.6,10.05943223]
[1770005428063,4.5,99.645,99.61,10.05943223]
[1770005428262,4.5,99.661,99.595,4.27527085]
[1770005428678,4.5,99.661,99.63,10.05943223]
[1770005429373,4.5,99.661,99.576,0.28432314]
[1770005429374,4.5,99.661,99.61,10.05943223]
[1770005429555,27.92,99.7,99.6,10.05943223]
[1770005429556,4.5,99.659,99.6,10.05943223]
[1770005429746,4.5,99.659,99.61,10.05943223]
[1770005429943,4.5,99.649,99.59,10.05943223]
[1770005430263,4.5,99.619,99.56,10.05943223]
[1770005430566,4.5,99.607,99.56,10.05943223]
[1770005430969,4.5,99.599,99.55,10.05943223]
[1770005431459,4.5,99.599,99.56,10.05943223]
[1770005431664,4.5,99.599,99.57,10.05943223]
[1770005432061,4.5,99.599,99.56,10.05943223]
[1770005432374,4.5,99.619,99.58,10.05943223]
[1770005432945,4.5,99.619,99.522,55.64270623]
[1770005432946,4.5,99.619,99.56,10.05943223]
[1770005433150,4.5,99.619,99.57,10.05943223]
[1770005433638,4.5,99.609,99.56,10.05943223]
[1770005433841,4.5,99.609,99.57,10.05943223]
[1770005435363,4.5,99.609,99.563,4.27527085]
[1770005435559,4.5,99.609,99.57,10.05943223]
[1770005435759,4.5,99.629,99.59,10.05943223]
[1770005435971,4.5,99.629,99.58,10.05943223]
[1770005436377,4.5,99.629,99.57,10.05943223]
[1770005436674,4.5,99.619,99.57,10.05943223]
[1770005437175,4.5,99.619,99.58,10.05943223]
[1770005437380,4.5,99.619,99.57,10.05943223]
[1770005437878,4.5,99.589,99.54,10.05943223]
[1770005438069,4.5,99.569,99.51,10.05943223]
[1770005438260,4.5,99.559,99.52,10.05943223]
[1770005438583,4.5,99.603,99.55,10.05943223]
[1770005438877,4.5,99.603,99.58,10.05943223]
[1770005439076,4.5,99.603,99.557,4.27527085]
[1770005439077,4.5,99.603,99.57,10.05943223]
[1770005439766,4.5,99.616,99.59,10.05943223]
[1770005440684,4.5,99.63,99.61,10.05943223]
[1770005441258,4.5,99.658,99.62,10.05943223]
[1770005441568,4.5,99.658,99.63,10.05943223]
[1770005441874,4.5,99.674,99.65,10.05943223]
[1770005442076,4.5,99.702,99.66,10.05943223]
[1770005442295,4.5,99.702,99.68,10.05943223]
[1770005442478,4.5,99.702,99.69,10.05943223]
[1770005442775,4.5,99.702,99.6,11.06344829]
[1770005442776,4.5,99.702,99.66,10.05943223]
[1770005442976,4.5,99.702,99.604,0.28432314]
[1770005443156,4.5,99.699,99.64,10.05943223]
[1770005443362,4.5,99.699,99.66,10.05943223]
[1770005444075,4.5,99.699,99.607,5.36086188]
[1770005444385,4.5,99.699,99.66,10.05943223]
[1770005445961,4.5,99.73,99.69,10.05943223]
[1770005446180,4.5,99.73,99.667,4.27527085]
[1770005446386,4.5,99.73,99.69,10.05943223]
[1770005447077,4.5,99.73,99.71,10.05943223]
[1770005447284,4.5,99.759,99.71,10.05943223]
[1770005447679,0.1,99.76,99.72,10.05943223]
[1770005447873,0.1,99.76,99.74,10.05943223]
[1770005448077,4.5,99.782,99.74,10.05943223]
[1770005450273,4.5,99.782,99.75,10.05943223]
[1770005450470,4.5,99.809,99.76,10.046351]
[1770005450670,4.5,99.809,99.75,10.046351]
[1770005450891,4.5,99.809,99.76,10.046351]
[1770005451073,4.5,99.809,99.77,10.046351]
[1770005451794,4.5,99.825,99.79,10.046351]
[1770005451972,4.5,99.825,99.78,10.046351]
[1770005452167,4.5,99.825,99.8,10.046351]
[1770005452469,4.5,99.825,99.779,4.27527085]
[1770005452673,4.5,99.819,99.77,10.046351]
[1770005453473,4.5,99.819,99.78,10.046351]
[1770005454192,4.5,99.819,99.759,4.27527085]
[1770005454193,4.5,99.819,99.77,10.046351]
[1770005454397,4.5,99.809,99.714,0.14216157]
[1770005454694,4.5,99.789,99.74,10.046351]
[1770005455079,10.046351,99.78,99.72,10.046351]
[1770005455274,4.5,99.769,99.72,10.046351]
[1770005455480,4.5,99.769,99.74,10.046351]
[1770005455678,4.5,99.769,99.709,4.27527085]
[1770005455887,4.5,99.769,99.68,10.046351]
[1770005455888,4.5,99.769,99.72,10.046351]
[1770005456083,4.5,99.769,99.74,10.046351]
[1770005456585,4.5,99.769,99.683,5.36086188]
[1770005456586,4.5,99.798,99.76,10.046351]
[1770005456788,4.5,99.798,99.78,10.046351]
[1770005457094,4.5,99.798,99.76,10.046351]
[1770005457298,4.5,99.798,99.75,10.046351]
[1770005457487,4.5,99.798,99.739,4.27527085]
[1770005457797,4.5,99.789,99.74,10.046351]
[1770005458000,4.5,99.789,99.691,5.36086188]
[1770005458301,4.5,99.789,99.74,10.046351]
[1770005458613,4.5,99.789,99.683,5.36086188]
[1770005458614,4.5,99.779,99.72,10.046351]
[1770005458911,4.5,99.769,99.72,10.046351]
[1770005459697,37.89727932,99.828,99.7,10.046351]
[1770005459698,4.5,99.749,99.7,10.046351]
[1770005459898,4.5,99.749,99.69,10.046351]
[1770005460100,4.5,99.739,99.68,10.046351]
[1770005460395,4.5,99.719,99.66,10.046351]
[1770005460589,4.5,99.709,99.66,10.046351]
[1770005460790,4.5,99.689,99.63,10.046351]
[1770005460993,4.5,99.689,99.556,71.98155902]
[1770005460994,4.5,99.679,99.62,10.046351]
[1770005461203,4.5,99.695,99.66,10.046351]
[1770005461377,4.5,99.695,99.64,10.046351]
[1770005461581,4.5,99.695,99.65,10.046351]
[1770005461782,4.5,99.679,99.63,10.046351]
[1770005462205,4.5,99.679,99.561,50.3221629]
[1770005462502,4.5,99.639,99.529,12.94043204]
[1770005462696,4.5,99.629,99.58,10.046351]
[1770005462999,27.88,99.674,99.54,10.046351]
[1770005463000,4.5,99.589,99.54,10.046351]
[1770005463202,4.5,99.579,99.52,10.046351]
[1770005463380,4.5,99.579,99.44,10.046351]
[1770005463381,4.5,99.559,99.5,10.046351]
[1770005463800,4.5,99.559,99.52,10.046351]
[1770005464000,4.5,99.559,99.447,27.88]
[1770005464001,4.5,99.559,99.51,10.046351]
[1770005464188,4.5,99.549,99.447,27.88]
[1770005464389,4.5,99.549,99.5,10.046351]
[1770005464596,4.5,99.539,99.48,10.046351]
[1770005464783,4.5,99.539,99.49,10.046351]
[1770005464988,4.5,99.539,99.5,10.046351]
[1770005465184,4.5,99.539,99.53,10.046351]
[1770005465391,10.046351,99.58,99.53,10.046351]
[1770005465392,4.5,99.569,99.53,10.046351]
[1770005465598,4.5,99.549,99.5,10.046351]
[1770005465784,4.5,99.549,99.51,10.046351]
[1770005465985,4.5,99.549,99.52,10.046351]
[1770005466487,4.5,99.563,99.54,10.046351]
[1770005466683,4.5,99.563,99.53,10.046351]
[1770005467102,4.5,99.563,99.51,10.046351]
[1770005467407,4.5,99.559,99.5,10.046351]
[1770005467606,4.5,99.559,99.53,10.046351]
[1770005468001,4.5,99.559,99.54,10.046351]
[1770005468317,4.5,99.559,99.53,10.046351]
[1770005468616,4.5,99.559,99.54,10.046351]
[1770005468790,4.5,99.559,99.52,10.046351]
[1770005469185,4.5,99.559,99.53,10.046351]
[1770005469408,4.5,99.559,99.54,10.046351]
[1770005469991,4.5,99.574,99.55,10.046351]
[1770005470303,4.5,99.591,99.56,10.046351]
[1770005470503,4.5,99.591,99.58,10.046351]
[1770005470703,4.5,99.591,99.57,10.046351]
[1770005471010,4.5,99.591,99.58,10.046351]
[1770005471200,4.5,99.614,99.56,10.046351]
[1770005471519,4.5,99.599,99.56,10.046351]
[1770005471808,4.5,99.599,99.55,10.046351]
[1770005472511,4.5,99.599,99.473,5.36086188]
[1770005472512,4.5,99.599,99.54,4.27527085]
[1770005472813,4.5,99.599,99.56,10.046351]
[1770005473199,4.5,99.599,99.55,10.046351]
[1770005474287,4.5,99.599,99.57,10.046351]
[1770005474490,4.5,99.599,99.53,4.27527085]
[1770005474491,4.5,99.619,99.56,10.046351]
[1770005474722,4.5,99.619,99.58,10.046351]
[1770005474900,4.5,99.619,99.55,4.27527085]
[1770005474901,4.5,99.619,99.59,10.046351]
[1770005475216,4.5,99.619,99.55,4.27527085]
[1770005475217,4.5,99.619,99.58,10.046351]
[1770005475609,4.5,99.639,99.58,10.046351]
[1770005475815,4.5,99.639,99.59,10.046351]
[1770005476018,4.5,99.639,99.61,10.046351]
[1770005477091,4.5,99.639,99.58,4.27527085]
[1770005477092,4.5,99.639,99.62,10.046351]
[1770005477292,4.5,99.639,99.61,10.046351]
[1770005477917,4.5,99.639,99.57,4.27527085]
[1770005478092,4.5,99.629,99.57,10.046351]
[1770005478294,4.5,99.619,99.57,10.046351]
[1770005478514,4.5,99.619,99.59,10.046351]
[1770005479203,4.5,99.619,99.532,5.36086188]
[1770005479204,4.5,99.619,99.58,10.046351]
[1770005479721,4.5,99.619,99.57,10.046351]
[1770005480097,4.5,99.619,99.55,4.27527085]
[1770005480098,30.0,99.58,99.55,10.046351]
[1770005480421,30.0,99.58,99.475,27.92]
[1770005480422,30.0,99.58,99.56,10.046351]
[1770005480624,30.0,99.58,99.57,10.046351]
[1770005480827,4.5,99.639,99.6,10.046351]
[1770005481118,4.5,99.639,99.532,5.36086188]
[1770005481119,4.5,99.639,99.61,10.046351]
[1770005482209,30.0,99.62,99.61,10.046351]
[1770005482411,4.5,99.639,99.61,10.046351]
[1770005482921,4.5,99.639,99.62,10.046351]
[1770005483120,10.046351,99.7,99.64,10.046351]
[1770005483333,8.24439896,99.74,99.65,10.046351]
[1770005483510,8.24439896,99.74,99.631,4.39497202]
[1770005483511,10.046351,99.72,99.66,10.046351]
[1770005483832,10.046351,99.7,99.64,10.046351]
[1770005484040,10.046351,99.69,99.63,10.046351]
[1770005484222,10.046351,99.66,99.592,4.39497202]
[1770005484431,10.046351,99.65,99.59,10.046351]
[1770005484723,10.046351,99.64,99.59,10.046351]
[1770005485102,4.46490525,99.639,99.58,10.046351]
[1770005485301,4.46490525,99.619,99.56,10.046351]
[1770005485517,4.46490525,99.617,99.56,10.046351]
[1770005485725,4.46490525,99.609,99.55,14.44132302]
[1770005486031,4.46490525,99.637,99.58,10.046351]
[1770005486216,4.46490525,99.637,99.59,10.046351]
[1770005486714,4.46490525,99.637,99.58,10.046351]
[1770005487233,4.46490525,99.619,99.549,4.39497202]
[1770005487534,4.46490525,99.579,99.461,4.39497202]
[1770005487738,4.46490525,99.569,99.51,10.046351]
[1770005487905,4.46490525,99.549,99.5,10.046351]
[1770005488533,4.46490525,99.539,99.48,10.046351]
[1770005488706,4.46490525,99.529,99.473,4.39497202]
[1770005488902,30.0,99.52,99.473,4.39497202]
[1770005489128,4.46490525,99.519,99.46,10.046351]
[1770005489432,4.46490525,99.509,99.45,10.246351]
[1770005489845,30.0,99.48,99.45,10.246351]
[1770005490014,4.46490525,99.479,99.45,10.246351]
[1770005490331,30.0,99.48,99.45,10.246351]
[1770005490538,30.0,99.48,99.46,10.046351]
[1770005490719,4.46490525,99.511,99.48,10.046351]
[1770005491733,4.46490525,99.511,99.47,10.046351]
[1770005491913,4.46490525,99.511,99.46,10.046351]
[1770005492649,4.5,99.509,99.46,10.046351]
[1770005493009,4.5,99.516,99.49,10.046351]
[1770005493410,4.5,99.516,99.48,10.046351]
[1770005494737,4.5,99.516,99.49,10.046351]
[1770005495046,4.5,99.531,99.49,10.046351]
[1770005495210,4.5,99.531,99.48,10.046351]
[1770005495552,4.5,99.529,99.48,10.046351]
[1770005495906,4.5,99.529,99.47,10.046351]
[1770005496108,4.5,99.529,99.45,0.2]
[1770005496308,4.5,99.519,99.46,10.046351]
[1770005496527,4.5,99.509,99.46,10.046351]
[1770005497621,4.5,99.523,99.49,10.046351]
[1770005498026,4.5,99.523,99.48,10.046351]
[1770005498811,4.5,99.519,99.46,10.046351]
[1770005499018,4.5,99.509,99.45,10.246351]
[1770005499234,4.5,99.499,99.45,0.2]
[1770005499709,4.5,99.499,99.45,10.246351]
[1770005499915,4.5,99.499,99.46,10.046351]
[1770005500418,4.5,99.499,99.45,0.2]
[1770005500419,4.5,99.499,99.47,10.046351]
[1770005500819,4.5,99.499,99.45,4.47527085]
[1770005501134,4.5,99.499,99.47,10.046351]
[1770005501319,4.5,99.529,99.47,10.046351]
[1770005501515,4.5,99.519,99.47,10.046351]
[1770005501938,4.5,99.509,99.45,10.246351]
[1770005502616,4.5,99.499,99.45,0.2]
[1770005502837,4.5,99.489,99.45,0.2]
[1770005503539,4.4,99.469,99.354,50.08761574]
[1770005503834,4.3,99.459,99.4,10.046351]
[1770005504038,4.27527085,99.49,99.38,10.046351]
[1770005504039,4.3,99.439,99.38,10.046351]
[1770005504423,4.3,99.439,99.384,0.4]
[1770005504617,4.3,99.439,99.4,10.046351]
[1770005505346,4.3,99.439,99.38,10.046351]
[1770005505640,4.3,99.429,99.36,0.2]
[1770005505938,4.3,99.429,99.3,0.1]
[1770005505939,4.2,99.389,99.33,10.046351]
[1770005506321,4.14532357,99.379,99.32,10.046351]
[1770005506717,4.49815255,99.369,99.31,10.046351]
[1770005507126,4.27527085,99.41,99.3,10.146351]
[1770005507127,4.49815255,99.359,99.3,10.146351]
[1770005507331,4.27527085,99.38,99.3,10.146351]
[1770005507332,4.49815255,99.349,99.3,10.146351]
[1770005507835,4.49815255,99.349,99.31,10.046351]
[1770005508019,4.49815255,99.349,99.32,10.046351]
[1770005508527,4.49815255,99.349,99.3,14.42162185]
[1770005508741,4.49815255,99.339,99.3,0.1]
[1770005509038,4.49815255,99.329,99.3,0.1]
[1770005509543,4.49815255,99.309,99.24,10.046351]
[1770005509743,4.49815255,99.289,99.199,0.9999908]
[1770005509915,4.49815255,99.295,99.26,10.046351]
[1770005510243,4.49815255,99.329,99.28,10.046351]
[1770005510427,4.49815255,99.329,99.29,10.046351]
[1770005510831,4.49815255,99.329,99.253,0.9999908]
[1770005511035,4.49815255,99.329,99.28,10.046351]
[1770005511219,4.49815255,99.329,99.3,10.046351]
[1770005511418,4.49815255,99.329,99.253,0.9999908]
[1770005511636,4.49815255,99.329,99.28,10.046351]
[1770005511938,4.27527085,99.361,99.3,10.046351]
[1770005511939,4.49815255,99.359,99.3,10.046351]
[1770005512142,4.49815255,99.359,99.31,10.046351]
[1770005512360,4.49815255,99.349,99.29,10.046351]
[1770005512516,4.49815255,99.349,99.3,10.14037421]
[1770005512723,4.49815255,99.349,99.33,10.14037421]
[1770005512931,4.49815255,99.359,99.256,0.9999908]
[1770005513130,4.49815255,99.359,99.31,10.14037421]
[1770005513335,4.49815255,99.359,99.269,4.27527085]
[1770005513518,4.49815255,99.329,99.28,10.14037421]
[1770005513830,4.49815255,99.309,99.26,10.14037421]
[1770005514241,4.49815255,99.309,99.239,0.9999908]
[1770005514242,4.49815255,99.309,99.28,10.14037421]
[1770005514423,4.49815255,99.329,99.28,10.14037421]
[1770005514936,27.98,99.339,99.25,10.14037421]
[1770005514937,4.49815255,99.309,99.25,10.14037421]
[1770005515323,4.49815255,99.309,99.26,10.14037421]
[1770005515523,4.49815255,99.309,99.23,1.0999908]
[1770005515738,4.49815255,99.299,99.25,10.14037421]
[1770005516238,4.49815255,99.299,99.28,10.14037421]
[1770005516447,4.49815255,99.299,99.26,10.14037421]
[1770005516620,4.49815255,99.299,99.25,10.14037421]
[1770005517019,4.49815255,99.299,99.27,10.14037421]
[1770005517223,4.49815255,99.299,99.23,1.0999908]
[1770005517440,4.49815255,99.299,99.26,10.14037421]
[1770005517843,4.49815255,99.299,99.25,10.14037421]
[1770005518043,4.49815255,99.299,99.24,10.14037421]
[1770005518228,4.49815255,99.299,99.25,10.14037421]
[1770005519144,4.49815255,99.299,99.23,0.1]
[1770005519341,4.49815255,99.299,99.25,10.14037421]
[1770005520652,4.49815255,99.297,99.25,10.14037421]
[1770005520959,28.0,99.309,99.23,10.24037421]
[1770005520960,4.49815255,99.286,99.23,10.24037421]
[1770005521248,4.49815255,99.259,99.21,10.14037421]
[1770005521444,4.49815255,99.259,99.23,10.14037421]
[1770005521645,10.06955626,99.31,99.25,10.14037421]
[1770005521646,4.49815255,99.285,99.25,10.14037421]
[1770005521832,4.49815255,99.285,99.27,10.14037421]
[1770005522342,4.49815255,99.279,99.22,10.14037421]
[1770005522522,5.36086188,99.284,99.18,1.0999908]
[1770005522523,4.49815255,99.259,99.18,1.0999908]
[1770005522727,5.36086188,99.284,99.19,10.14037421]
[1770005522728,4.49815255,99.239,99.19,10.14037421]
[1770005522928,4.49815255,99.239,99.12,10.14037421]
[1770005522929,4.49815255,99.239,99.2,10.14037421]
[1770005523322,4.27527085,99.237,99.147,1.0999908]
[1770005523546,4.27527085,99.237,99.131,5.25117858]
[1770005523547,4.49815255,99.199,99.14,10.14037421]
[1770005523740,30.33,99.179,99.131,5.25117858]
[1770005523926,4.49815255,99.149,99.1,10.14037421]
[1770005524128,4.49815255,99.139,99.06,8.1925692]
[1770005524331,4.49815255,99.168,99.13,10.14037421]
[1770005524530,4.49815255,99.168,99.121,4.24096001]
[1770005524730,4.49815255,99.168,99.14,10.14037421]
[1770005525033,4.49815255,99.149,99.09,10.14037421]
[1770005525246,4.49815255,99.149,99.065,4.24096001]
[1770005525247,4.49815255,99.138,99.08,10.24037421]
[1770005525548,4.49815255,99.129,99.08,10.24037421]
[1770005525847,4.49815255,99.128,99.09,10.14037421]
[1770005526153,4.49815255,99.128,99.08,0.1]
[1770005526450,4.49815255,99.119,99.08,0.1]
[1770005526750,4.49815255,99.109,99.06,10.14037421]
[1770005527348,4.49815255,99.089,99.04,10.14037421]
[1770005527549,4.49815255,99.089,99.022,4.24096001]
[1770005527850,4.49815255,99.089,99.05,10.14037421]
[1770005528052,4.49815255,99.089,98.99,4.27527085]
[1770005528053,4.49815255,99.089,99.04,10.14037421]
[1770005528234,4.25858881,99.079,99.02,4.0797905]
[1770005528437,4.25858881,99.079,99.02,10.14037421]
[1770005528752,4.25858881,99.059,99.01,10.14037421]
[1770005529153,4.25858881,99.058,98.992,4.0797905]
[1770005529352,4.25858881,99.029,98.98,0.1]
[1770005529665,4.25858881,99.041,98.986,4.0797905]
[1770005529832,4.25858881,99.039,98.98,0.1]
[1770005530187,4.25858881,99.054,99.001,4.0797905]
[1770005530326,4.25858881,99.054,99.01,10.14037421]
[1770005530530,10.14037421,99.07,98.98,0.1]
[1770005530531,4.25858881,99.07,99.04,10.14037421]
[1770005530732,4.25858881,99.085,99.05,10.14037421]
[1770005531131,4.25858881,99.085,99.029,4.0797905]
[1770005531132,4.25858881,99.085,99.06,10.14037421]
[1770005531743,4.25858881,99.085,99.04,10.14037421]
[1770005531945,4.25858881,99.079,99.03,10.14037421]
[1770005532330,4.25858881,99.077,99.013,4.0797905]
[1770005532531,4.25858881,99.077,99.03,10.14037421]
[1770005533032,4.25858881,99.091,99.05,10.14037421]
[1770005533238,4.25858881,99.091,99.06,10.14037421]
[1770005533441,4.25858881,99.106,99.054,4.0797905]
[1770005533647,4.25858881,99.153,99.1,10.14037421]
[1770005533853,4.25858881,99.153,99.12,10.14037421]
[1770005534656,4.25858881,99.153,99.11,10.14037421]
[1770005534836,4.25858881,99.149,99.1,10.14037421]
[1770005535040,4.25858881,99.149,99.09,10.14037421]
[1770005535355,4.25858881,99.149,99.1,10.14037421]
[1770005535538,4.25858881,99.149,99.12,10.14037421]
[1770005535940,4.25858881,99.149,99.11,10.14037421]
[1770005536550,4.25858881,99.149,99.12,10.14037421]
[1770005536936,4.25858881,99.163,99.11,4.0797905]
[1770005537138,4.25858881,99.163,99.12,10.14037421]
[1770005537645,4.25858881,99.163,99.13,10.14037421]
[1770005537848,4.25858881,99.163,99.14,10.14037421]
[1770005538256,4.25858881,99.163,99.13,10.14037421]
[1770005538667,6.43312593,99.169,99.15,10.14037421]
[1770005538843,6.43312593,99.169,99.13,10.14037421]
[1770005538844,4.25858881,99.168,99.13,10.14037421]
[1770005539342,4.25858881,99.168,99.12,10.14037421]
[1770005539661,4.25858881,99.168,99.13,10.14037421]
[1770005539868,6.43312593,99.169,99.15,10.14037421]
[1770005540341,6.43312593,99.169,99.069,5.36086188]
[1770005540342,6.43312593,99.169,99.16,10.14037421]
[1770005540541,4.25858881,99.195,99.16,10.14037421]
[1770005540957,4.25858881,99.195,99.143,4.0797905]
[1770005541141,30.33,99.225,99.123,4.27527085]
[1770005541142,4.29098287,99.225,99.18,10.14037421]
[1770005541352,4.29098287,99.225,99.12,15.50123609]
[1770005541353,4.29098287,99.225,99.21,10.14037421]
[1770005541554,4.29098287,99.219,99.126,0.41803425]
[1770005541754,4.29098287,99.209,99.146,0.41803425]
[1770005542050,4.29098287,99.209,99.17,10.14037421]
[1770005542450,4.29098287,99.209,99.18,10.14037421]
[1770005542761,4.29098287,99.239,99.2,10.14037421]
[1770005543163,4.29098287,99.239,99.19,10.14037421]
[1770005543745,4.29098287,99.239,99.2,10.14037421]
[1770005544069,4.29098287,99.239,99.21,10.14037421]
[1770005544251,4.29098287,99.239,99.2,10.14037421]
[1770005544444,10.14037421,99.23,99.18,10.14037421]
[1770005544666,4.29098287,99.219,99.17,10.14037421]
[1770005544851,4.29098287,99.209,99.16,10.14037421]
[1770005545757,4.29098287,99.199,99.121,0.41803425]
[1770005545961,4.29098287,99.199,99.17,10.14037421]
[1770005546343,4.27527085,99.24,99.18,10.14037421]
[1770005546344,4.29098287,99.217,99.18,10.14037421]
[1770005546751,4.29098287,99.217,99.17,10.14037421]
[1770005547076,4.29098287,99.209,99.16,10.14037421]
[1770005547368,4.29098287,99.199,99.16,10.14037421]
[1770005547666,4.29098287,99.199,99.145,0.41803425]
[1770005547667,4.29098287,99.199,99.15,10.14037421]
[1770005547969,4.29098287,99.199,99.145,0.41803425]
[1770005548178,4.29098287,99.199,99.16,10.14037421]
[1770005548370,4.29098287,99.199,99.15,10.14037421]
[1770005548754,4.29098287,99.199,99.16,10.14037421]
[1770005548952,4.29098287,99.212,99.157,0.41803425]
[1770005549150,4.29098287,99.209,99.15,10.14037421]
[1770005549678,4.29098287,99.199,99.14,10.14037421]
[1770005549851,4.29098287,99.189,99.13,10.14037421]
[1770005550053,4.29098287,99.189,99.14,10.14037421]
[1770005550366,28.04,99.219,99.11,10.14037421]
[1770005550367,4.29098287,99.159,99.11,10.14037421]
[1770005550570,4.29098287,99.159,99.102,0.41803425]
[1770005550761,4.29098287,99.159,99.12,10.14037421]
[1770005550961,19.85962579,99.12,99.09,10.14037421]
[1770005551161,19.85962579,99.12,99.1,10.14037421]
[1770005551560,19.44159154,99.12,99.11,10.14037421]
[1770005551877,4.29098287,99.155,99.12,10.14037421]
[1770005552056,4.5,99.168,99.13,10.14037421]
[1770005552372,4.5,99.168,99.14,10.14037421]
[1770005552875,4.5,99.168,99.09,4.27527085]
[1770005552876,4.5,99.168,99.11,10.14037421]
[1770005553055,4.5,99.159,99.11,10.14037421]
[1770005553265,4.5,99.149,99.1,10.14037421]
[1770005553576,30.33,99.185,99.09,10.14037421]
[1770005553577,4.5,99.139,99.09,10.14037421]
[1770005553884,4.5,99.139,99.041,5.36086188]
[1770005553885,4.5,99.139,99.11,10.14037421]
[1770005554174,4.5,99.159,99.11,10.14037421]
[1770005554375,4.5,99.159,99.12,10.14037421]
[1770005554575,4.5,99.149,99.1,10.14037421]
[1770005555074,4.5,99.156,99.11,10.14037421]
[1770005555376,4.5,99.156,99.12,10.14037421]
[1770005555548,4.5,99.156,99.13,10.14037421]
[1770005555973,4.5,99.156,99.12,10.14037421]
[1770005556169,4.5,99.156,99.091,4.27527085]
[1770005556170,4.5,99.156,99.13,10.14037421]
[1770005556354,4.5,99.156,99.12,10.14037421]
[1770005556555,4.5,99.156,99.11,10.14037421]
[1770005556955,4.5,99.139,99.09,10.14037421]
[1770005557159,4.5,99.129,99.007,50.09351614]
[1770005557359,4.5,99.109,99.05,10.14037421]
[1770005557558,4.5,99.109,99.06,10.14037421]
[1770005557878,4.5,99.109,99.07,10.14037421]
[1770005558676,4.5,99.129,99.08,10.14037421]
[1770005558868,4.5,99.129,99.09,10.14037421]
[1770005559067,4.5,99.099,98.968,50.5172353]
[1770005559265,10.0878653,99.129,99.04,10.14037421]
[1770005559266,14.64037421,99.09,99.04,10.14037421]
[1770005559458,4.5,99.09,99.06,10.14037421]
[1770005559660,4.5,99.09,99.011,4.27527085]
[1770005560176,28.06,99.108,98.96,0.1]
[1770005560177,4.5,99.079,98.96,0.1]
[1770005560374,28.06,99.108,99.0,10.14037421]
[1770005560375,4.5,99.049,99.0,10.14037421]
[1770005560682,4.5,99.049,98.96,10.24037421]
[1770005560683,4.5,99.019,98.97,10.54036501]
[1770005560858,4.5,99.019,98.98,10.24037421]
[1770005561378,4.5,99.049,99.0,10.14037421]
[1770005561560,4.5,99.039,99.0,10.14037421]
[1770005561764,4.5,99.039,99.01,10.14037421]
[1770005562375,4.5,99.039,99.0,10.14037421]